Cogmind - Beta 12 @@@ ROGUE MODE // 2023.03.10 @ 23:54:21 Player: arcadio rl Result: Destroyed by S-27 Virus with Autogun Performance ------------- Evolutions (3) 1500 Regions Visited (6) 1200 Robots Destroyed (107) 535 Value Destroyed (3260) 3260 Prototype IDs (8) 160 Alien Tech Used (0) 0 Bonus (136) 136 TOTAL SCORE: 6791 Bonus ------- High Alert Combat Kills 35 Follower Combat Kills 130 Friendly Fire -29 Cogmind --------- Core Integrity 0/700 Matter 144/300 Energy 48/100 System Corruption 2% Temperature Cool (0) Movement Core (50) Location -7/Factory Parts ------- > --- POWER (2) -------- (None) > --- PROPULSION (4) --- (None) > --- UTILITY (5) ------ (None) > --- WEAPON (2) ------- (None) > --- INVENTORY (5) ---- Light Nuclear Core Enhanced Autogun Flak Gun Flak Gun Mining Laser Peak State ------------ > --- POWER ------------ Improved Deuterium Engine Micro Nuclear Core > --- PROPULSION ------- Armored Huge Wheel Armored Huge Wheel > --- UTILITY ---------- Huge Storage Unit Improved Light Armor Plating Medium Reactive Plating Hardlight Generator System Shield > --- WEAPON ----------- Flak Gun Flak Gun > --- INVENTORY -------- Light Deuterium Engine Nuclear Core Light Nuclear Core Light Nuclear Core Improved Deuterium Engine Medium Treads Medium Treads Medium Treads Improved Heat Sink Improved Heat Sink Advanced Weight Redist. System Trap Scanner Signal Interpreter Advanced Targeting Computer System Restoration Module Improved EM Shotgun Heavy Particle Gun Plasma Cannon Plasma Cannon Minigun Enhanced Autogun Flak Gun Heavy Rocket Launcher Heavy Missile Launcher Mining Laser [Rating: 54] Favorites ----------- Power Ion Engine Engine Ion Engine Power Core Light Nuclear Core Propulsion Wheel Treads Medium Treads Leg Aluminum Leg Wheel Wheel Utility High-capacity Storage Unit Device Cooling System Storage High-capacity Storage Unit Processor Improved Terrain Scan Processor Hackware System Shield Protection Improved Light Armor Plating Weapon Spread Laser Energy Gun Spread Laser Energy Cannon Plasma Cannon Ballistic Gun Flak Gun Launcher Grenade Launcher Special Weapon Mining Laser Build | -11 -10 -10 -10 -9 -8 -7 ------- Run | Jun Mat Min Exi Min Mat Fac Slots Evolved 6 | . . . . . 4 2 Power 1 | . . . . . . 1 Propulsion 2 | . . . . . 2 . Utility 3 | . . . . . 2 1 Weapon . | . . . . . . . Parts Attached 124 | 6 27 2 . 5 50 34 Power 17 | 1 1 . . 1 6 8 Engine 9 | 1 1 . . 1 1 5 Core 8 | . . . . . 5 3 Reactor . | . . . . . . . Propulsion 42 | 2 11 2 . 3 17 7 Treads 8 | . 2 . . . 3 3 Leg 12 | . 2 . . . 9 1 Wheel 22 | 2 7 2 . 3 5 3 Hover . | . . . . . . . Flight . | . . . . . . . Utility 30 | 1 6 . . . 12 11 Device 17 | . 3 . . . 7 7 Storage 4 | 1 2 . . . . 1 Processor 3 | . 1 . . . 2 . Hackware 1 | . . . . . 1 . Protection 5 | . . . . . 2 3 Artifact . | . . . . . . . Weapon 35 | 2 9 . . 1 15 8 Energy Gun 14 | . 5 . . . 8 1 Energy Cannon 1 | . . . . . . 1 Ballistic Gun 12 | 2 2 . . . 4 4 Ballistic Cannon . | . . . . . . . Launcher 7 | . 2 . . 1 2 2 Special Weapon 1 | . . . . . 1 . Impact Weapon . | . . . . . . . Slashing Weapon . | . . . . . . . Piercing Weapon . | . . . . . . . Special Melee Weapon . | . . . . . . . Unidentified Prototypes . | . . . . . . . Parts Lost 38 | . 3 . . 1 13 21 Power 6 | . . . . 1 2 3 Propulsion 9 | . 1 . . . 6 2 Utility 13 | . . . . . 2 11 Weapon 10 | . 2 . . . 3 5 Highest Loss Streak 9 | . 2 . . 1 6 9 To Critical Strikes . | . . . . . . . Average Slot Usage (%) 94 | . 97 100 100 100 96 83 Engine 9 | . 14 14 14 14 2 8 Core 2 | . . . . . 6 5 Treads 1 | . 4 . . . . 2 Leg 4 | . . . . . 16 3 Wheel 20 | . 21 28 28 28 18 10 Device 13 | . 7 14 14 14 14 17 Storage 10 | . 14 14 14 14 9 6 Processor 2 | . 5 . . . 5 . Hackware 2 | . . . . . 3 7 Protection 1 | . . . . . 2 3 Energy Gun 13 | . 14 28 28 15 9 1 Ballistic Gun 6 | . 13 . . . 7 11 Launcher 1 | . . . . 12 . . Naked Turns 2 | . . . . . . 2 Heaviest Build 142 | 13 53 53 53 53 59 142 Greatest Support 84 | 20 40 20 20 32 64 84 Greatest Overweight (x) 37 | . 16 2 2 2 4 37 Average Overweight (x) 1 | . 1 2 2 1 . 1 Largest Inventory Capacity 25 | 8 20 20 20 20 20 25 Average Capacity 20 | 6 16 20 20 20 20 23 Most Carried 25 | 6 20 20 20 20 20 25 Average Carried 18 | 2 13 19 20 19 19 21 Final Capacity 20 | 8 20 20 20 20 20 5 Final Carried 20 | 6 20 20 20 20 20 5 Class Distribution -------------------- 75% | Mutant 24% | Scavenger-Mutant Dominant Class ---------------- Mutant | -10/Materials Mutant | -10/Mines Mutant | -10/Exiles Mutant | -9/Mines Scavenger-Mutant | -8/Materials Mutant | -7/Factory Resources | -11 -10 -10 -10 -9 -8 -7 ----------- Run | Jun Mat Min Exi Min Mat Fac Matter Collected 2095 | 203 501 20 . 135 576 660 Remotely . | . . . . . . . Salvage Created 3147 | . 531 233 . 128 1253 1002 Parts 193 | . 36 20 . 20 70 47 Haulers Intercepted 7 | . 1 . . . 5 1 Recyclers Shooed 2 | . . 1 . . 1 . Parts Field Recycled . | . . . . . . . Retrieved Matter . | . . . . . . . Parts Self-Destructed . | . . . . . . . Prevented . | . . . . . . . Kills | -11 -10 -10 -10 -9 -8 -7 ------- Run | Jun Mat Min Exi Min Mat Fac Combat Hostiles Destroyed 86 | . 12 4 . 12 28 30 Guns 51 | . 6 4 . . 21 20 Cannons 2 | . . . . . . 2 AOE 32 | . 6 . . 12 6 8 Classes Destroyed 15 | . 6 2 . 1 2 4 Worker 4 | . 1 3 . . . . Builder 2 | . 1 . . 1 . . Tunneler 2 | . . 2 . . . . Hauler 7 | . 1 . . . 5 1 Recycler 1 | . . 1 . . . . Mechanic 1 | . . . . . . 1 Operator 1 | . . . . . 1 . Watcher 4 | . 3 . . . 1 . Swarmer 29 | . 6 . . 9 9 5 Grunt 37 | . 6 4 . 2 16 9 Protector 1 | . . . . . . 1 Sentry 7 | . . . . . 3 4 Hunter 6 | . . . . . . 6 Programmer 5 | . . . . . . 5 Assembled 1 | . . . . 1 . . Best Kill Streak 10 | . 4 3 . 4 8 10 Combat Bots Only 9 | . 3 2 . 4 6 9 Max Kills in Single Turn 6 | . 2 2 . 2 5 6 Gunslinging . | . . . . . . . Exploded 6 | . 2 . . 2 5 6 Melee . | . . . . . . . Uniques/NPCs Destroyed . | . . . . . . . Combat | -11 -10 -10 -10 -9 -8 -7 -------- Run | Jun Mat Min Exi Min Mat Fac Damage Taken 5150 | . 453 172 . 158 1371 2996 Core 1080 | . 72 35 . 40 227 706 Absorbed by Shields 310 | . . . . . . 310 Redirected to Shielding 27 | . . . . . 27 . Regen/Repaired (Parts) 135 | . 113 . . . 22 . Core Remaining (%) 66 | 100 . . . 41 58 . Volleys Fired 248 | . 43 20 . 9 92 84 Largest 2 | . 2 2 . 2 2 2 Hottest 135 | . 70 130 . 95 126 135 Shots Fired 493 | . 86 40 . 18 182 167 Gun 446 | . 81 40 . 9 177 139 Cannon 23 | . . . . . . 23 Launcher 23 | . 5 . . 9 4 5 Special 1 | . . . . . 1 . Kinetic 217 | . 59 . . . 41 117 Thermal 233 | . 2 40 . 9 137 45 Explosive 23 | . 5 . . 9 4 5 Electromagnetic 20 | . 20 . . . . . Robot Hit Streak 17 | . 14 17 . 5 14 9 Robot Miss Streak 9 | . 3 9 . 6 4 7 Penetration Max . | . . . . . . . Secondary Targets 3 | . . . . . 3 . Max Gunslinging Chain 1 | . . . . . 1 . Shots Hit Robots 327 | . 53 31 . 2 118 123 Core Hits 282 | . 27 46 . 18 55 136 Critical Kills . | . . . . . . . Critical Parts Destroyed 1 | . . . . . 1 . Critical Strikes 10 | . 1 . . . 9 . Burn 8 | . . . . . 8 . Destroy 1 | . . . . . 1 . Corrupt 1 | . 1 . . . . . Melee Attacks . | . . . . . . . Impact . | . . . . . . . Slashing . | . . . . . . . Piercing . | . . . . . . . Sneak Attacks . | . . . . . . . Combat Hostiles . | . . . . . . . Follow-up Attacks . | . . . . . . . Damage Inflicted 8296 | . 983 436 . 626 2474 3777 Guns 5112 | . 675 436 . 37 2005 1959 Cannons 201 | . . . . . . 201 Explosions 2951 | . 308 . . 582 444 1617 Melee . | . . . . . . . Ramming 32 | . . . . 7 25 . Kinetic 2502 | . 434 . . . 392 1676 Thermal 2688 | . 118 436 . 37 1613 484 Explosive 2856 | . 213 . . 582 444 1617 Electromagnetic 218 | . 218 . . . . . Impact . | . . . . . . . Slashing . | . . . . . . . Piercing . | . . . . . . . Highest Corruption 3 | . . . . . 3 2 Average Corruption 2 | . . . . . 2 1 Corruption Purged 2 | . . . . . . 2 Corruption Blocked . | . . . . . . . Effects 16 | . . . . . 9 7 Message Errors 1 | . . . . . . 1 Matter Fused 4 | . . . . . 4 . Heat Flow Errors 3 | . . . . . 1 2 Energy Discharges 2 | . . . . . 1 1 Parts Rejected 1 | . . . . . 1 . Misfires 2 | . . . . . 1 1 Weapon Failures 3 | . . . . . 1 2 Overload Shots . | . . . . . . . Overflow Damage 121 | . 81 . . 15 . 25 Projectiles . | . . . . . . . Explosions 121 | . 81 . . 15 . 25 Melee . | . . . . . . . Knockbacks . | . . . . . . . Impact . | . . . . . . . Kinetic . | . . . . . . . Secondary . | . . . . . . . Self-Inflicted Damage 226 | . 89 . . 60 77 . Shots 9 | . 5 . . 2 2 . Rammed 2 | . . . . 1 1 . Targets Rammed 2 | . . . . 1 1 . Kicked . | . . . . . . . Crushed . | . . . . . . . Highest Temperature 366 | . 63 75 . . 266 366 Average Temperature 57 | . 23 19 . . 56 71 Received Heat Transfer 1234 | . 165 84 . 6 603 376 Effects 4 | . . . . . . 4 Shutdowns 2 | . . . . . . 2 Energy Bleed 2 | . . . . . . 2 Siege Activations . | . . . . . . . Robots Corrupted . | . . . . . . . Combat Hostiles . | . . . . . . . Parts Fried . | . . . . . . . Impact Corruptions . | . . . . . . . Robots Melted 1 | . . . . . 1 . Combat Hostiles 1 | . . . . . 1 . Parts Melted 13 | . . . . . 12 1 Heat Transferred 5857 | . 200 545 . 50 4070 992 Parts Sabotaged . | . . . . . . . Parts Stolen . | . . . . . . . Parts Stripped . | . . . . . . . Power Chain Reactions 3 | . 3 . . . . . Missiles Intercepted . | . . . . . . . Alert | -11 -10 -10 -10 -9 -8 -7 ------- Run | Jun Mat Min Exi Min Mat Fac Peak Influence 480 | . 251 273 . 341 380 480 Initial 93 | . . 83 . . 93 92 Average 173 | . 108 119 . 204 216 192 Maximum Alert Level 2 | . 1 1 . 1 1 2 Low Security (%) 65 | 100 88 94 . 56 38 65 Level 1 30 | . 11 5 . 43 61 20 Level 2 3 | . . . . . . 13 Level 3 . | . . . . . . . Level 4 . | . . . . . . . Level 5 . | . . . . . . . High Security . | . . . . . . . Max Security . | . . . . . . . Squads Dispatched 24 | . 4 . . 1 8 11 Investigation 9 | . 3 . . 1 3 2 Extermination 2 | . . . . . . 2 Reinforcement 7 | . 1 . . . 2 4 Assault . | . . . . . . . Garrison 6 | . . . . . 3 3 Intercept . | . . . . . . . Searches Triggered . | . . . . . . . Construction Impeded 1 | . . . . . . 1 Haulers Reinforced 1 | . . . . . . 1 Active Scanning Responses . | . . . . . . . Cargo Convoy Interrupts 1 | . . . . . . 1 Stealth | -11 -10 -10 -10 -9 -8 -7 --------- Run | Jun Mat Min Exi Min Mat Fac Distress Signals 6 | . 2 . . . 2 2 Communications Jammed . | . . . . . . . Distress Signals . | . . . . . . . Times Spotted 149 | . 24 8 . 16 49 52 Peak Tracking Total 13 | . 6 3 . 4 13 12 Tactical Retreats 12 | . 3 2 . . 4 3 Traps | -11 -10 -10 -10 -9 -8 -7 ------- Run | Jun Mat Min Exi Min Mat Fac Traps Triggered 5 | . 3 1 . . 1 . Indirectly . | . . . . . . . Trap Hack Attempts . | . . . . . . . Triggered . | . . . . . . . Disarmed . | . . . . . . . Reprogrammed . | . . . . . . . Reused . | . . . . . . . Traps Extracted . | . . . . . . . Installed . | . . . . . . . Triggered . | . . . . . . . Machines | -11 -10 -10 -10 -9 -8 -7 ---------- Run | Jun Mat Min Exi Min Mat Fac Machines Disabled 7 | . 3 . . 2 . 2 Max in Single Turn 1 | . 1 . . 1 . 1 Machines Repaired . | . . . . . . . Machines Sabotaged . | . . . . . . . Overloaded Fab Kills . | . . . . . . . Hacking | -11 -10 -10 -10 -9 -8 -7 --------- Run | Jun Mat Min Exi Min Mat Fac Machines Accessed 42 | . 8 1 4 1 13 15 Terminals 21 | . 5 . . 1 9 6 Fabricators 2 | . . . . . . 2 Repair Stations 4 | . 1 . . . 1 2 Recycling Units 4 | . 2 . . . 1 1 Scanalyzers 5 | . . . . . 2 3 Garrison Access 1 | . . . . . . 1 Total Hacks 197 | . 35 1 49 5 46 61 Successful 131 | . 22 1 49 2 27 30 Failed 66 | . 13 . . 3 19 31 Catastrophic 11 | . 1 . . 2 2 6 Database Lockouts . | . . . . . . . Manual 54 | . 13 . . 5 22 14 Terminals 71 | . 20 . . 5 27 19 Fabricators 4 | . . . . . . 4 Repair Stations 17 | . 11 . . . 4 2 Recycling Units 9 | . 4 . . . 3 2 Scanalyzers 41 | . . . . . 12 29 Garrison Access 5 | . . . . . . 5 Terminal Hacks 74 | . 8 1 49 2 10 4 Record 49 | . . . 49 . . . Robot Analysis 5 | . 1 . . 1 1 2 Prototype ID Bank 3 | . 1 . . 1 1 . Open Door 1 | . . 1 . . . . Branch Access Points 2 | . . . . . 1 1 Emergency Access Points 1 | . 1 . . . . . Terminal Index 2 | . 1 . . . 1 . Alert Level 5 | . 2 . . . 2 1 Unreport Threat 3 | . . . . . 3 . Dispatch Records 2 | . 2 . . . . . Recall Investigation 1 | . . . . . 1 . Fabricator Hacks 2 | . . . . . . 2 Load Schematic 1 | . . . . . . 1 Build 1 | . . . . . . 1 Repair Station Hacks 11 | . 9 . . . 2 . Scan Component 6 | . 5 . . . 1 . Repair 5 | . 4 . . . 1 . Recycling Unit Hacks 1 | . 1 . . . . . Report Inventory 1 | . 1 . . . . . Scanalyzer 31 | . . . . . 11 20 Insert Component 14 | . . . . . 5 9 Analyze 17 | . . . . . 6 11 Garrison Access Hacks . | . . . . . . . Unauthorized Hacks 12 | . 4 . . . 4 4 Terminals 7 | . 3 . . . 2 2 Botnet 6 | . 2 . . . 2 2 Operators 1 | . 1 . . . . . Fabricators . | . . . . . . . Repair Stations . | . . . . . . . Recycling Units 4 | . 1 . . . 1 2 Reject 2 | . . . . . 1 1 Recyclers 1 | . . . . . . 1 Tunnel 1 | . 1 . . . . . Scanalyzers 1 | . . . . . 1 . Extract 1 | . . . . . 1 . Garrison Access . | . . . . . . . Data Cores Recovered . | . . . . . . . Used . | . . . . . . . Hacking Detections 36 | . 7 . . 1 13 15 Full Trace Events 6 | . 1 . . 1 2 2 Feedback Events 1 | . . . . . 1 . Corruption 1 | . . . . . 1 . Feedback Blocked . | . . . . . . . Robot Schematics Acquired . | . . . . . . . Robots Built . | . . . . . . . Authchips . | . . . . . . . Time . | . . . . . . . Total Robot Build Rating . | . . . . . . . Part Schematics Acquired 13 | . . . . . 5 8 Parts Built . | . . . . . . . Authchips . | . . . . . . . Time 84 | . . . . . . 84 Total Part Build Rating . | . . . . . . . Parts Repaired 5 | . 4 . . . 1 . Time 148 | . 104 . . . 44 . Parts Recycled . | . . . . . . . Recycled Matter . | . . . . . . . Retrieved Matter . | . . . . . . . Retrieved Components . | . . . . . . . Parts Scanalyzed 12 | . . . . . 4 8 Part Schematics Acquired 11 | . . . . . 3 8 Parts Damaged . | . . . . . . . Bothacking | -11 -10 -10 -10 -9 -8 -7 ------------ Run | Jun Mat Min Exi Min Mat Fac Used RIF Installer . | . . . . . . . Robots Hacked . | . . . . . . . Non-combat . | . . . . . . . Combat . | . . . . . . . Robot Hacks Applied . | . . . . . . . Relay Couplers Released . | . . . . . . . Fabnet Peak Effective % . | . . . . . . . Robots Rewired . | . . . . . . . Allies Hacked . | . . . . . . . Hacks Repelled . | . . . . . . . Allies | -11 -10 -10 -10 -9 -8 -7 -------- Run | Jun Mat Min Exi Min Mat Fac Total Allies 6 | . . 6 . . . . Largest Group 6 | . . 6 6 3 2 . Highest-Rated Group 120 | . . 120 120 40 32 . Highest-Rated Ally 31 | . . 31 31 16 16 . Total Orders . | . . . . . . . Ally Attacks 36 | . . 8 . 22 6 . Total Damage 397 | . . 106 . 208 83 . Kills 8 | . . 1 . 5 2 . Allies Corrupted . | . . . . . . . Allies Melted . | . . . . . . . Intel | -11 -10 -10 -10 -9 -8 -7 ------- Run | Jun Mat Min Exi Min Mat Fac Robot Analysis Total 5 | . 1 . . 1 1 2 Derelict Logs Recovered 3 | . . 2 . 1 . . Drone Launches . | . . . . . . . Drone Recoveries . | . . . . . . . Exploration | -11 -10 -10 -10 -9 -8 -7 ------------- Run | Jun Mat Min Exi Min Mat Fac Turns Passed 7016 | 61 1182 820 693 796 1758 1706 Spaces Moved 4563 | 64 768 601 604 649 915 962 Core 35 | 16 3 . . . . 16 Treads 179 | . 103 . . . 2 74 Legs 408 | . . . . . 328 80 Wheels 3941 | 48 662 601 604 649 585 792 Hover . | . . . . . . . Flight . | . . . . . . . Fastest Speed 50 | 50 80 110 110 110 100 50 Average Speed 120 | 72 110 110 110 110 133 136 Slowest Speed 1900 | 80 850 110 110 120 400 1900 Overloaded Moves . | . . . . . . . Propulsion Burnouts . | . . . . . . . Robots Hopped . | . . . . . . . Cave-ins Triggered . | . . . . . . . Exploration Rate (%) 65 | 3 82 98 89 97 61 27 Regions Visited 6 Branch Regions 3 Pre-discovered Areas 3 | . 1 . 1 1 . . Known Exits Taken . | . . . . . . . Unknown Exits Taken 6 | 1 1 1 1 1 1 . Scrap Searched 5 | . . 3 . 2 . . Spaces Dug 18 | . . . . . 18 . Terrain Destroyed 213 | . 43 . . 61 74 35 Melee . | . . . . . . . Projectile 1 | . . . . . 1 . AOE 212 | . 43 . . 61 73 35 Terrain Rammed . | . . . . . . . Walls Destroyed . | . . . . . . . Machines Disabled . | . . . . . . . Actions | -11 -10 -10 -10 -9 -8 -7 --------- Run | Jun Mat Min Exi Min Mat Fac Total 5627 | 75 1009 725 632 711 1277 1198 Wait 546 | . 145 89 23 35 172 82 Move 4557 | 63 767 600 603 648 914 962 Hop . | . . . . . . . Pick Up 75 | 6 19 6 . 6 22 16 Fast Attach 21 | 6 7 . . 1 5 2 Attach 34 | . 3 . . 1 19 11 Detach 8 | . 1 . . . 6 1 Swap 69 | . 17 2 . 3 26 21 Drop 61 | . 7 8 . 7 20 19 Fire 248 | . 43 20 . 9 92 84 Melee . | . . . . . . . Ram 2 | . . . . 1 1 . Kick . | . . . . . . . Crush . | . . . . . . . Escape Stasis . | . . . . . . . Rewire 6 | . . . 6 . . . Trap . | . . . . . . . Miscellaneous . | . . . . . . . Route ------- -11/Junkyard -10/Materials (discovered 2 exits: [*Mat] / *Min) -10/Mines (discovered 3 exits: [*Mat x2] / *Exi) -10/Exiles (discovered 2 exits: *Min x2) -9/Mines (discovered 2 exits: *Mat x2) -8/Materials -7/Factory (discovered 2 exits: Low x2) History --------- Turn | Location | Event 44 | -11/Junkyard | Discovered new exit (range 15) 62 | -11/Junkyard | Entered Materials 336 | -10/Materials | Build established: Mutant 521 | -10/Materials | Discovered new exit (range 9) 761 | -10/Materials | Discovered new exit (range 11) 1025 | -10/Materials | Repaired Wheel 1052 | -10/Materials | Repaired Wheel 1080 | -10/Materials | Repaired Grenade Launcher 1107 | -10/Materials | Repaired Wheel 1244 | -10/Materials | Entered Mines 1337 | -10/Mines | Discovered new exit (range 3) 1345 | -10/Mines | Met a Derelict who couldn't figure out how to use a Trap Extractor 1369 | -10/Mines | Deemed a non-threat by the Exiles lab entrance 1369 | -10/Mines | Discovered new exit (range 5) 1478 | -10/Mines | Learned Materials emergency access door positions 1745 | -10/Mines | Discovered new exit (range 12) 1759 | -10/Mines | Assisted by bots powering up and referring to "LRC-V3" 1903 | -10/Mines | Learned Materials emergency access door positions 1908 | -10/Mines | Escorted by a lone wolf Derelict 2064 | -10/Mines | Entered Exiles 2064 | -10/Exiles | Accompanied by 6 allies 2091 | -10/Exiles | Met 8R-AWN 2094 | -10/Exiles | Led the pair of lost Derelicts to a safe place 2110 | -10/Exiles | Met EX-HEX 2178 | -10/Exiles | Met EX-DEC 2245 | -10/Exiles | Visited The Gauntlet 2448 | -10/Exiles | Met EX-BIN 2560 | -10/Exiles | Learned location of Zion (-6) 2601 | -10/Exiles | Discovered new exit (range 14) 2719 | -10/Exiles | Discovered new exit (range 14) 2757 | -10/Exiles | Entered Mines 2757 | -9/Mines | Accompanied by 3 allies 2758 | -9/Mines | Assembled infested the area 2902 | -9/Mines | Core integrity fell below 50% 3068 | -9/Mines | A weapon hastily lodged in a ceiling crevice suddenly fell to the ground 3190 | -9/Mines | Discovered new exit (range 10) 3463 | -9/Mines | Discovered new exit (range 10) 3553 | -9/Mines | Entered Materials 3553 | -8/Materials | Accompanied by 2 allies 3553 | -8/Materials | Evolved 4 slots: Propulsion x2, Utility x2 3851 | -8/Materials | Build established: Scavenger-Mutant 3974 | -8/Materials | Garrison activated, responded to threat 4523 | -8/Materials | Lost 6 parts (1p2n2u1w) 4929 | -8/Materials | Repaired Hvy. Rocket Launcher 5053 | -8/Materials | Discovered new exit (range 14) 5311 | -8/Materials | Entered Factory 5311 | -7/Factory | Evolved 2 slots: Power x1, Utility x1 5793 | -7/Factory | Build established: Mutant 6131 | -7/Factory | Garrison activated, responded to threat 6483 | -7/Factory | Identified exit to Lower Caves 6624 | -7/Factory | Cargo convoy interrupted 6682 | -7/Factory | Destroyed 9 combat bots 6692 | -7/Factory | Lost 3 parts (1p1n1u) 6944 | -7/Factory | Core integrity fell below 50% 6977 | -7/Factory | Lost 9 parts (1p5u3w) 7013 | -7/Factory | Core integrity fell below 20% 7017 | -7/Factory | Destroyed by S-27 Virus with Autogun Last Messages --------------- 06952_ System corrupted: FCS attempts to trigger Plasma Cannon. 06952_ System corrupted: Plasma Cannon misfires. 06965_ Acquired Mining Laser. 06966_ R-06 Scavenger collects Med. Treads. 06967_ System corrupted: Heat flow error (+194). 06988_ Nuclear Core destroyed. 06991_ S-27 Virus destroyed. 06994_ Acquired 30 matter. 06998_ K-01 Serf collects debris. 07006_ ALERT: Suspicious intruders detected, dispatching Specialist reinforcements to area. 07006_ K-01 Serf destroyed. 07008_ Arm. Huge Wheel destroyed. 07008_ U-05 Engineer builds a Wall. 07010_ Plasma Cannon destroyed. 07010_ Hvy. Particle Gun destroyed. 07012_ System Shield destroyed. 07013_ Knocked back. 07015_ Imp. Heat Sink destroyed. 07015_ Critical hit (Blast). Map ----- +----------------------------------------------------+ | # #######??????????????????????????? | | # #????????????????????????????????? | | + #????????????????????????????????? | | # #????????????????????????????????? | | # #????????????????????????????????? | | # #????????????????????????????????? | | # #????????????????????????????????? | | # #????????????????????????????????? | | ?* # #????????????????????????????????? | | ??? # ################?????????????????? | | ????# ^ ^% % %# #?????????????????? | | ????# # =#?????????????????? | | ????# " " #= #?????????????????? | | ????# "F %# """""" #?????????????????? | | ????#=/ =% =#=""""""" #?????????????????? | | ????#/ ^ ^ # """""" *#?????????????????? | | ????# =/ ] """"" #???????##????????? | | ????# # %[]!!! |#?????? +????????? | | ????# ###########????? #????????? | | ????# H############### #????????? | | ????# s u #????????? | | ????# m s H +????????? | | ????# % % x #????????? | | ????# """ """ """ s #?????????????? | | ????# """ """ """ #?????????????? | | ??? """ """ """ @ #?????????????? | | ? x ""T"" #?????????????? | | ?""" %""""" #?????????????? | | ??"" ?? ####"" ""############?????????????? | | ???"?? ? ???#""G""#????????????????????????? | | ??????? ????######?????????????????????????? | | ?????????????????????????????????>?????????? | | ???????????????????????????????????????????? | | ???????????????????????????????????????????? | | ???????????????????????????????????????????? | | ???????????????????????????????????????????? | | ???????????????????????????????????????????? | | ???????????????????????????????????????????? | | ???????????????????????????????????????????? | | ???????????????????????????????????????????? | | ???????????????????????????????????????????? | | ???????????????????????????????????????????? | | ???????????????????????????????????????????? | | ???????????????????????????????????????????? | | ???????????????????????????????????????????? | | ???????????????????????????????????????????? | | ???????????????????????????????????????????? | | ???????????????????????????????????????????? | | ???????????????????????????????????????????? | | ???????????????????????????????????????????? | +----------------------------------------------------+ Best States ------------- Heat Dissipation 53 Energy Generation 27 Energy Capacity 480 Matter Stores 300 Matter Capacity 300 Sight Range 20 Terrain Scan Range 16 Terrain Scan Density 110 Additional Mass Support 9 Armor Coverage 375 Resistance: KI 30 Core Shielding 20 Evasion (%) 50 Targeting Accuracy 5 Recoil Reduction 3 Matter Filtering 30 Particle Charging 15 Defensive Hacking 10 Item Schematics ----------------- Signal Interpreter | -8/Materials | Scanalyzed Hvy. Particle Gun | -8/Materials | Scanalyzed Hvy. Missile Launcher | -8/Materials | Scanalyzed Lrg. Storage Unit | -8/Materials | Extracted Lrg. Matter Pod | -8/Materials | Extracted Hvy. Rocket Launcher | -7/Factory | Scanalyzed System Restoration Module | -7/Factory | Scanalyzed Imp. Heat Sink | -7/Factory | Scanalyzed Lgt. Deuterium Engine | -7/Factory | Scanalyzed Med. Treads | -7/Factory | Scanalyzed Remote Datajack | -7/Factory | Scanalyzed Adv. Targeting Computer | -7/Factory | Scanalyzed Trap Scanner | -7/Factory | Scanalyzed Robot Schematics ------------------ None Fabricated ------------ Nothing Alien Tech Used ----------------- None Achievements -------------- None Challenges ------------ None Game ------ Seed RocketArmorSpoofer Manual? 0 Play Time 01:51:43 Cumulative 72.2 hours Start 2023.03.10 @ 21:49:57 End 2023.03.10 @ 23:54:21 Sessions 1 Manual Loads 0 Difficulty Rogue Special Mode None Game No. 55 Rogue 55 Adventurer 0 Explorer 0 Win Type - Total 0 Types 0/0/0/0/0/0/0/0/0 Lore% 43 Gallery% 43 Achievement% 35 Wizard Run 0 Options --------- ASCII 0 Keyboard 1 Movement Numpad Keybinds 0 Fullscreen 2 Font 18/SmallcapsGlow Map View 76x50 Tactical HUD 1 Map Filters NONE Filters NONE Steam 1 RUN: 4e6ac583-e6c8-4a91-9b65-29c5bad0e789